[Event "3rd Sunway Formentera-A 2024"]
[Site "Formentera"]
[Date "2024.04.09"]
[Round "1.13"]
[White "Torres Samper, Rafael"]
[Black "Mandzhieva, Altana"]
[Result "0-1"]
[ECO "C14"]
[WhiteElo "1918"]
[BlackElo "1742"]
[Annotator "RC"]
[PlyCount "44"]
[EventDate "2024.04.03"]
[EventType "swiss"]
[EventCountry "ESP"]
[SourceTitle "playchess.com"]
[Source "ChessBase"]
[SourceQuality "1"]
[TimeControl "40/5400+30:1800+30"]

1. d4 {[%emt 0:00:05]} e6 {[%emt 0:00:00]} 2. e4 {[%emt 0:00:30]} d5 {[%emt 0:00:06]} 3. Nc3 {[%emt 0:00:30]} Nf6 {[%emt 0:00:30]} 4. Bg5 {[%emt 0:00:30]} Be7 {[%emt 0:00:30]} 5. e5 {[%emt 0:00:30]} Nfd7 {[%emt 0:00:30]} 6. h4 {[%emt 0:00:30]} c5 {[%emt 0:05:02]} 7. Bxe7 {[%emt 0:27:30]} Qxe7 {[%emt 0:00:30]} 8. f4 {[%emt 0:00:30]} Nc6 {[%emt 0:00:30]} 9. Nf3 {[%emt 0:00:30]} cxd4 {[%emt 0:00:30]} 10. Nb5 {[%emt 0:00:30]} Qb4+ {[%emt 0:25:44]} 11. Qd2 {[%emt 0:30:15]} O-O {[%emt 0:10:19]} 12. c3 {[%emt 0:03:55]} dxc3 {[%emt 0:03:22]} 13. bxc3 {[%emt 0:00:20]} Qe4+ {[%emt 0:02:30]} 14. Kf2 {[%emt 0:00:07]} Nc5 {[%emt 0:05:35]} 15. Nd6 {[%emt 0:06:26]} Qg6 {[%emt 0:07:31]} 16. h5 {[%emt 0:02:21]} Qh6 {[%emt 0:00:45]} 17. g4 {[%emt 0:00:17]} g6 {[%emt 0:07:59]} 18. Bd3 {[%emt 0:07:42]} Nxd3+ {[%emt 0:00:30]} 19. Qxd3 {[%emt 0:00:30]} Qxf4 {[%emt 0:04:01]} 20. Rae1 {[%emt 0:04:34]} g5 {[%emt 0:00:30]} 21. h6 {[%emt 0:00:30]} f6 {[%emt 0:16:25]} 22. Rh5 {[%emt 0:08:55]} Nxe5 {[%emt 0:03:01]} 0-1

[Event "3rd Sunway Formentera-A 2024"]
[Site "Formentera"]
[Date "2024.04.10"]
[Round "2.1"]
[White "Jacobson, Aaron"]
[Black "Donchenko, Alexander"]
[Result "0-1"]
[ECO "B19"]
[WhiteElo "2431"]
[BlackElo "2633"]
[Annotator "TA"]
[PlyCount "96"]
[EventDate "2024.04.03"]
[EventType "swiss"]
[EventCountry "ESP"]
[SourceTitle "playchess.com"]
[Source "ChessBase"]
[SourceQuality "1"]
[TimeControl "40/5400+30:1800+30"]

{[%evp 24,96,1,17,48,40,59,48,60,51,70,68,64,54,45,0,0,0,20,17,17,12,18,0,4,0,0,-14,8,0,6,5,12,-14,-19,0,-4,-49,-55,-107,-98,-148,-153,-118,-151,-237,-258,-256,-262,-245,-228,-216,-206,-235,-236,-284,-294,-283,-271,-367,-378,-380,-379,-458,-405,-514,-385,-446,-482,-480,-470,-1471,-1444,-29986,-29987]} 1. e4 {[%emt 0:00:03]} c6 {[%emt 0:00:17]} 2. d4 {[%emt 0:00:06]} d5 {[%emt 0:00:05]} 3. Nc3 {[%emt 0:00:04]} dxe4 {[%emt 0:00:31]} 4. Nxe4 {[%emt 0:00:06]} Bf5 {[%emt 0:00:23]} 5. Ng3 {[%emt 0:00:05]} Bg6 {[%emt 0:00:06]} 6. h4 {[%emt 0:00:04]} h6 {[%emt 0:00:05]} 7. Nf3 {[%emt 0:00:04]} Nd7 {[%emt 0:00:21]} 8. h5 {[%emt 0:00:05]} Bh7 {[%emt 0:00:05]} 9. Bd3 {[%emt 0:00:04]} Bxd3 {[%emt 0:00:06]} 10. Qxd3 {[%emt 0:00:04]} e6 {[%emt 0:00:09]} 11. Bd2 {[%emt 0:00:14]} Ngf6 {[%emt 0:01:02]} 12. O-O-O {[%emt 0:00:13]} Be7 {[%emt 0:01:22]} 13. Ne4 {[%emt 0:00:48]} Rc8 {[%emt 0:09:52]} 14. Nxf6+ {[%emt 0:05:37]} Nxf6 {[%emt 0:02:27]} 15. Ne5 {[%emt 0:05:27]} Qd5 {[%emt 0:06:05] White is slightly better.} 16. Kb1 {[%emt 1:25:26]} O-O {[%emt 0:10:24][%cal Oc6c5]} 17. g4 {[%emt 0:00:00] g5 is the strong threat.} Bd6 {[%emt 0:12:53]} 18. c4 {[%emt 0:00:00]} Qe4 {[%emt 0:00:16]} 19. Qxe4 {[%emt 0:00:00]} Nxe4 {[%emt 0:00:06]} 20. Be3 {[%emt 0:00:00]} Rfd8 {[%emt 0:13:34]} 21. f3 {[%emt 0:00:00]} Ng5 {[%emt 0:00:55]} 22. f4 {[%emt 0:00:00]} Ne4 {[%emt 0:00:18]} 23. Rhe1 {[%emt 0:00:00]} b5 {[%emt 0:07:21]} 24. cxb5 {[%emt 0:01:43]} cxb5 {[%emt 0:00:11]} 25. d5 {[%emt 0:00:08]} exd5 {[%emt 0:14:10]} 26. Rxd5 {[%emt 0:01:51]} Nf6 {[%emt 0:00:17]} 27. Rxb5 {[%emt 0:00:26]} a6 {[%emt 0:00:09]} 28. Rb7 {[%emt 0:01:10]} Bxe5 {[%emt 0:00:46]} 29. fxe5 {[%emt 0:00:01]} Nxg4 {[%emt 0:00:06]} 30. Bc1 {[%emt 0:00:49]} Nxe5 $1 {[%emt 0:02:22]} 31. Rg1 {[%emt 0:00:46] Black continues to play with concentration.} ({White should play} 31. Rxe5 $15 Rd1 32. a4 Rcxc1+ 33. Ka2) 31... Rc6 $17 {[%emt 0:02:22]} 32. b4 {[%emt 0:00:33]} (32. Rf1 $142) 32... Nd3 $1 {[%emt 0:03:30]} 33. Be3 {[%emt 0:00:30]} Rd5 $1 {[%emt 0:03:04]} 34. Rh1 {[%emt 0:00:32] [#]} (34. Rb8+ $17 Kh7 35. Rb7) 34... Re5 $1 $19 {[%emt 0:01:28]} 35. Bd4 {[%emt 0:00:23] [#]} Rxh5 {[%emt 0:02:39][%mdl 512]} 36. Rd1 {[%emt 0:00:34]} (36. Rb8+ Kh7 37. Rd1 Rh3) 36... Rh3 {[%emt 0:02:26]} 37. a3 {[%emt 0:00:20]} Rg3 {[%emt 0:02:38]} 38. Rd7 {[%emt 0:00:34]} Nf4 {[%emt 0:02:04]} 39. Rf1 {[%emt 0:00:35]} Ne6 {[%emt 0:02:14]} 40. Bb2 {[%emt 0:00:00]} f6 {[%emt 0:00:00]} 41. Bxf6 {[%emt 0:09:37]} gxf6 {[%emt 0:02:08]} 42. Rxf6 {[%emt 0:00:04]} Rg7 {[%emt 0:01:09]} (42... Rxa3 43. Rg6+ Kf8 44. Rxh6 $19) 43. Rd5 {[%emt 0:00:36]} Kh7 {[%emt 0:00:18]} 44. a4 {[%emt 0:00:41] [#]} Nd4 $1 {[%emt 0:01:35][%mdl 512] ( -> ...Rg1+)} 45. Rxc6 {[%emt 0:01:25]} Nxc6 {[%emt 0:00:02]} 46. b5 {[%emt 0:00:07]} axb5 {[%emt 0:00:25]} 47. axb5 {[%emt 0:00:04]} (47. Rxb5 $142 Ra7 48. Rd5) 47... Rb7 {[%emt 0:00:25]} 48. Kc2 {[%emt 0:00:25]} Nb4+ {[%emt 0:00:05] Weighted Error Value: White=0.51/Black=0.10 (very precise) .  Mistake:       	White=4     	---        Inaccurate:     	White=5     	---        OK:         	White=10    	Black=13     Best:        	White=3     	Black=1      Strong:       	---       	Black=2      Brilliant:      	---       	Black=1} 0-1

[Event "3rd Sunway Formentera-A 2024"]
[Site "Formentera"]
[Date "2024.04.10"]
[Round "2.2"]
[White "Vantika Agrawal"]
[Black "Moussard, Jules"]
[Result "0-1"]
[ECO "E15"]
[WhiteElo "2398"]
[BlackElo "2610"]
[Annotator "TA"]
[PlyCount "138"]
[EventDate "2024.04.03"]
[EventType "swiss"]
[EventCountry "ESP"]
[SourceTitle "playchess.com"]
[Source "ChessBase"]
[SourceQuality "1"]
[TimeControl "40/5400+30:1800+30"]

{[%evp 48,138,-13,-11,-17,-60,-13,-22,-18,-77,-44,-55,-34,-91,-56,-85,-34,-65,-38,-113,-22,-39,-11,-17,-18,-20,-18,-20,-13,-40,-35,-51,-62,-129,-135,-131,-114,-191,-201,-202,-124,-156,-139,-132,-124,-149,-160,-140,-104,-108,-104,-115,-106,-119,-127,-154,-154,-214,-154,-156,-140,-359,-358,-356,-351,-1693,-1757,-1568,-1173,-6432,-4176,-5539,-2872,-6447,-5631,-9341,-7870,-5531,-5431,-29969,-29971,-29978,-29979,-29984,-29985,-29985,-29986,-29986,-29987,-29987,-29988,-29990,-29991]} 1. d4 {[%emt 0:00:11]} Nf6 {[%emt 0:00:07]} 2. c4 {[%emt 0:00:07]} e6 {[%emt 0:00:04]} 3. Nf3 {[%emt 0:00:09]} b6 {[%emt 0:00:06]} 4. g3 {[%emt 0:00:22]} Ba6 {[%emt 0:00:11]} 5. b3 {[%emt 0:00:21]} Bb4+ {[%emt 0:00:12]} 6. Bd2 {[%emt 0:00:17]} Be7 {[%emt 0:00:06]} 7. Bg2 {[%emt 0:00:22]} d5 {[%emt 0:00:12]} 8. cxd5 {[%emt 0:00:58]} exd5 {[%emt 0:00:06]} 9. O-O {[%emt 0:00:24]} O-O {[%emt 0:00:09]} 10. Nc3 {[%emt 0:00:53]} Re8 {[%emt 0:00:06]} 11. Ne5 {[%emt 0:00:41] E15: Queen's Indian: 4 g3 sidelines, 4 g3 Ba6 and 4 g3 Bb7 early deviations.} Bb7 {[%emt 0:00:17]} 12. Rc1 {[%emt 0:01:33]} Nbd7 {[%emt 0:00:49]} 13. Rc2 {[%emt 0:00:46]} h6 {[%emt 0:01:34]} 14. Bf4 {[%emt 0:04:00]} Nf8 {[%emt 0:00:55]} 15. Bc1 {[%emt 0:01:04]} Ne6 {[%emt 0:01:50]} 16. Bb2 {[%emt 0:04:42]} Bf8 {[%emt 0:05:47]} 17. e3 {[%emt 0:05:20]} c6 {[%emt 0:04:35]} 18. h4 $146 {[%emt 0:05:42]} ({Predecessor:} 18. Ne2 Rc8 19. Qd3 c5 20. Rfc1 Bd6 21. Qd1 Qe7 22. Nf3 Ne4 23. Nc3 Nxc3 24. Rxc3 Red8 25. R3c2 Qe8 26. h4 a5 27. a4 Bc6 28. Rc3 {½-½ Ruggeri Laderchi,G (2438)-Shulman,B (2433) SCO MT-Pyrich S02 email 2018}) 18... Rc8 {[%emt 0:03:24]} 19. Ne2 {[%emt 0:17:42]} Rc7 {[%emt 0:04:31]} 20. Nf4 {[%emt 0:06:55]} Nxf4 {[%emt 0:02:46]} 21. exf4 {[%emt 0:00:57]} c5 {[%emt 0:01:24]} 22. Re1 {[%emt 0:08:16]} Qc8 {[%emt 0:03:25]} 23. Bf3 {[%emt 0:20:31]} c4 {[%emt 0:05:50]} 24. Re3 {[%emt 0:18:42]} b5 {[%emt 0:00:52]} 25. a4 {[%emt 0:00:44]} a6 {[%emt 0:00:29]} 26. Qb1 {[%emt 0:01:15]} Bb4 {[%emt 0:05:37]} (26... bxa4 $15 27. bxa4 Ba8) 27. axb5 $11 {[%emt 0:00:33]} axb5 {[%emt 0:00:07]} 28. Ba1 {[%emt 0:00:27]} (28. Bc1 $11) 28... Bf8 {[%emt 0:03:36]} 29. Bb2 {[%emt 0:00:33]} Qa8 {[%emt 0:04:08]} 30. Kh2 {[%emt 0:00:28]} (30. Qd1 $15) 30... Rec8 {[%emt 0:00:20]} 31. g4 {[%emt 0:00:31]} Ne4 {[%emt 0:06:06]} (31... cxb3 $17 32. Rxc7 Rxc7 33. Rxb3 Ne4 34. Rxb5 Qa4 35. Bxe4 Qxb5 36. Bh7+ Kh8) 32. Bxe4 {[%emt 0:00:28]} dxe4 {[%emt 0:00:02]} 33. bxc4 {[%emt 0:00:11] [#]} bxc4 {[%emt 0:00:02]} (33... f6 $1 $17 {[%cal Rf6e5]} 34. Ng6 Rxc4 (34... bxc4 35. Bc3 $15) 35. Rxc4 Rxc4) 34. Bc3 {[%emt 0:00:40]} Bd5 {[%emt 0:00:34]} 35. Ra2 {[%emt 0:00:19]} Ra7 {[%emt 0:00:27]} 36. Rxa7 {[%emt 0:00:46]} Qxa7 {[%emt 0:00:02]} 37. Qb5 {[%emt 0:00:29]} Qa8 {[%emt 0:09:36]} (37... Qb7 {simplifies} 38. Qxb7 Bxb7 39. Kg3 f6) 38. g5 {[%emt 0:00:30]} (38. Nd7 {simplifies} Rd8 39. Nxf8 Rxf8 40. g5) 38... Rb8 {[%emt 0:00:14]} 39. Qd7 {[%emt 0:00:39]} Be6 {[%emt 0:00:13]} 40. Qc6 {[%emt 0:00:00]} (40. Qc7 $15) 40... Qxc6 $17 {[%emt 0:00:00]} 41. Nxc6 {[%emt 0:01:53]} Rb3 {[%emt 0:03:13]} 42. gxh6 {[%emt 0:12:47]} (42. Na5 $17 {was called for.} Rb1 43. Rxe4) 42... Bd6 $19 {[%emt 0:06:13]} ({But not} 42... gxh6 43. Kg3) 43. Kg3 {[%emt 0:12:16]} gxh6 {[%emt 0:13:02]} 44. d5 {[%emt 0:02:35]} Bxd5 {[%emt 0:01:14]} 45. Nd4 {[%emt 0:00:30]} Rb1 {[%emt 0:01:54]} 46. Re1 {[%emt 0:01:45]} Rxe1 {[%emt 0:02:53]} 47. Bxe1 {[%emt 0:00:05]} Kh7 {[%emt 0:00:04]} 48. h5 {[%emt 0:00:52]} Be6 {[%emt 0:07:36]} 49. Bc3 {[%emt 0:01:09]} Bd7 {[%emt 0:00:05]} 50. Nc2 {[%emt 0:00:58]} f5 {[%emt 0:00:14]} 51. Ne3 {[%emt 0:00:50]} Be6 {[%emt 0:00:13]} 52. Nc2 {[%emt 0:00:26]} (52. Ba5 $17) 52... Bc5 {[%emt 0:01:13]} 53. Nd4 {[%emt 0:00:53]} Bd7 {[%emt 0:00:31]} 54. Kh4 $2 {[%emt 0:00:30]} (54. Nc2 $17 {might work better.}) 54... Be7+ $19 {[%emt 0:01:27]} 55. Kg3 {[%emt 0:00:10]} Bf6 {[%emt 0:00:13]} 56. Ne2 $2 {[%emt 0:00:50]} (56. f3 exf3 57. Kxf3) 56... Bxc3 $19 {[%emt 0:00:26]} 57. Nxc3 {[%emt 0:00:04]} Be8 {[%emt 0:02:48]} 58. Kh4 {[%emt 0:00:56]} Kg7 {[%emt 0:00:23]} 59. Nd5 {[%emt 0:00:27]} Bf7 {[%emt 0:00:07]} 60. Nc3 {[%emt 0:00:30]} Kf6 {[%emt 0:00:06]} 61. Ne2 {[%emt 0:00:30]} Ke7 {[%emt 0:00:38]} 62. Nd4 {[%emt 0:00:26]} Be6 {[%emt 0:00:46]} 63. Nb5 {[%emt 0:00:37]} Bd7 {[%emt 0:00:05]} 64. Nc3 {[%emt 0:00:25]} Kd6 {[%emt 0:00:03]} 65. f3 {[%emt 0:00:36]} e3 {[%emt 0:00:15]} 66. Kg3 {[%emt 0:00:28]} Kc5 {[%emt 0:00:06]} 67. Ne2 {[%emt 0:00:33]} Kb4 {[%emt 0:00:05]} 68. Kg2 {[%emt 0:00:29]} c3 {[%emt 0:00:04]} 69. Nc1 {[%emt 0:00:22]} Bb5 {[%emt 0:00:07]} 0-1

[Event "3rd Sunway Formentera-A 2024"]
[Site "Formentera"]
[Date "2024.04.10"]
[Round "2.3"]
[White "Song, Yuxin"]
[Black "Dragnev, Valentin"]
[Result "1/2-1/2"]
[ECO "C70"]
[WhiteElo "2379"]
[BlackElo "2571"]
[Annotator "TA"]
[PlyCount "130"]
[EventDate "2024.04.03"]
[EventType "swiss"]
[EventCountry "ESP"]
[SourceTitle "playchess.com"]
[Source "ChessBase"]
[SourceQuality "1"]
[TimeControl "40/5400+30:1800+30"]

{[%evp 32,130,0,-11,0,0,0,0,0,-21,-16,-17,-22,-26,-7,-17,-8,-9,0,-8,0,-5,0,0,0,-3,0,-4,-10,-6,0,0,0,0,0,0,0,-24,-24,-23,0,-34,-15,-21,-23,-25,-3,-6,0,0,0,-11,-10,-17,0,-10,-8,-9,-22,-8,0,0,0,-18,-4,-7,-6,-8,0,0,0,0,0,-4,0,0,0,0,0,0,0,0,0,0,0,0,0,0,0,0,0,0,0,0,0,0,0,0,0,0,0]} 1. e4 {[%emt 0:00:03]} e5 {[%emt 0:00:06]} 2. Nf3 {[%emt 0:00:05]} Nc6 {[%emt 0:00:06]} 3. Bb5 {[%emt 0:00:03]} a6 {[%emt 0:00:09]} 4. Ba4 {[%emt 0:00:04]} Bc5 {[%emt 0:00:10]} 5. c3 {[%emt 0:01:32]} Nge7 {[%emt 0:00:20]} 6. d4 {[%emt 0:00:53] C70: Ruy Lopez: 3...a6 4 Ba4, Norwegian and Delayed Schliemann.} exd4 {[%emt 0:00:07]} 7. cxd4 {[%emt 0:00:05]} Bb4+ {[%emt 0:00:08]} 8. Bd2 {[%emt 0:00:09]} Bxd2+ {[%emt 0:00:12]} 9. Qxd2 {[%emt 0:00:06]} d5 {[%emt 0:00:16]} 10. exd5 {[%emt 0:00:05]} Qxd5 {[%emt 0:00:13]} 11. O-O {[%emt 0:04:16]} Qd6 {[%emt 0:02:39]} 12. Nc3 {[%emt 0:11:45]} O-O {[%emt 0:00:56]} 13. Bxc6 $146 {[%emt 0:04:44]} ({Predecessor:} 13. Ne4 Qb4 14. Qxb4 Nxb4 15. a3 Nbd5 16. Rac1 Rd8 17. Rfe1 c6 18. h3 Kf8 19. Nc5 {0-1 Giri,A (2768)-Praggnanandhaa,R (2691) Chessable Masters Play In rapid 2023 (6)}) 13... Nxc6 {[%emt 0:09:16]} 14. d5 {[%emt 0:12:38]} Ne7 {[%emt 0:04:58]} 15. Rfe1 {[%emt 0:01:47]} Bf5 {[%emt 0:04:38]} 16. h3 {[%emt 0:04:05]} Rad8 {[%emt 0:03:20]} 17. Rad1 {[%emt 0:00:17]} h6 {[%emt 0:05:25]} 18. Qd4 {[%emt 0:03:50]} Rfe8 {[%emt 0:11:58]} 19. Re3 {[%emt 0:11:34]} Ng6 {[%emt 0:05:28]} 20. Nh4 {[%emt 0:18:00]} Nxh4 {[%emt 0:01:47]} 21. Rxe8+ {[%emt 0:00:11]} Rxe8 {[%emt 0:00:05]} 22. Qxh4 {[%emt 0:00:05]} Re5 {[%emt 0:22:06]} 23. Qg3 {[%emt 0:03:24]} Bd7 {[%emt 0:03:37]} 24. a3 {[%emt 0:02:29]} Qf6 {[%emt 0:03:48]} 25. Kf1 {[%emt 0:03:06]} a5 {[%emt 0:05:18]} 26. Qd3 {[%emt 0:04:24]} Qf4 {[%emt 0:04:25]} 27. Kg1 {[%emt 0:02:56]} h5 {[%emt 0:02:27]} 28. Qd2 {[%emt 0:02:31]} Qf6 {[%emt 0:05:00]} 29. Re1 {[%emt 0:01:56]} Rxe1+ {[%emt 0:02:04]} 30. Qxe1 {[%emt 0:00:01]} c6 {[%emt 0:01:41]} 31. Qd2 {[%emt 0:06:07]} Qe5 {[%emt 0:00:39]} 32. dxc6 {[%emt 0:00:20]} Bxc6 {[%emt 0:00:08]} 33. h4 {[%emt 0:01:38]} Qf6 {[%emt 0:01:40]} 34. Nd1 {[%emt 0:00:01]} Qxh4 {[%emt 0:00:28]} 35. Qxa5 {[%emt 0:00:00]} Qd4 {[%emt 0:01:25]} 36. Qe1 {[%emt 0:00:18]} h4 {[%emt 0:00:18]} 37. Qe2 $1 {[%emt 0:00:41]} Qf6 {[%emt 0:01:02]} 38. Ne3 {[%emt 0:00:53]} Qe5 {[%emt 0:00:28]} 39. Qg4 {[%emt 0:00:35]} Qf6 {[%emt 0:00:33]} (39... g6 {with more complications.} 40. Qxh4 Qxb2 41. Ng4 Qc1+) 40. Nf5 {[%emt 0:00:00]} g6 {[%emt 0:00:00]} (40... Bd7 $5 41. Nh6+ $8 Qxh6 42. Qxd7 Qc1+ 43. Kh2 Qxb2 $11) 41. Nxh4 {[%emt 0:05:46]} Qxb2 {[%emt 0:01:40]} 42. Qg3 {[%emt 0:00:20]} Kf8 {[%emt 0:12:34]} 43. Kh2 {[%emt 0:03:32]} Qd4 {[%emt 0:01:44]} 44. Nf3 {[%emt 0:01:57]} Qh8+ {[%emt 0:00:56]} 45. Nh4 {[%emt 0:00:01]} Qd4 {[%emt 0:00:50]} 46. Nf3 {[%emt 0:00:47]} Qh8+ {[%emt 0:00:13]} 47. Nh4 {[%emt 0:00:01]} Ke7 {[%emt 0:00:31]} 48. f4 {[%emt 0:02:37]} Qh5 {[%emt 0:06:43]} 49. Qe3+ {[%emt 0:02:01]} Kd8 {[%emt 0:01:07]} 50. Kg3 {[%emt 0:00:34]} Kd7 {[%emt 0:04:38]} 51. Qc3 {[%emt 0:05:13]} Qd1 {[%emt 0:01:11]} 52. Kf2 {[%emt 0:03:18]} Bd5 {[%emt 0:01:07]} 53. Nf3 {[%emt 0:02:13]} Qb3 {[%emt 0:01:01]} 54. Ne5+ {[%emt 0:01:09]} Kd6 {[%emt 0:00:31]} 55. Qxb3 {[%emt 0:10:54]} Bxb3 {[%emt 0:00:02]} 56. Ke3 {[%emt 0:00:00]} Kc5 {[%emt 0:02:24]} 57. Kd3 {[%emt 0:00:00]} Be6 {[%emt 0:00:15]} 58. g4 {[%emt 0:00:00]} Kd5 {[%emt 0:00:36]} 59. g5 {[%emt 0:00:00]} Kc5 {[%emt 0:00:50]} 60. Kc3 {[%emt 0:00:00]} Kb5 {[%emt 0:00:48]} 61. Nd3 {[%emt 0:00:00]} b6 {[%emt 0:00:41]} 62. Nb2 {[%emt 0:00:00]} Kc5 {[%emt 0:00:36]} 63. Na4+ {[%emt 0:00:00]} Kb5 {[%emt 0:00:17]} 64. Nb2 {[%emt 0:00:00]} Kc5 {[%emt 0:00:46]} 65. Na4+ {[%emt 0:00:00]} Kb5 {[%emt 0:00:30]} 1/2-1/2